fUSD/lending_fUSD_20260301
["ID","MTS","AMOUNT","RATE_DAILY","PERIOD"]
[406948795,1772335838845,-500.0,0.0001207,2]
[406948796,1772335838855,-500.0,0.0001207,2]
[406948797,1772335838864,-500.0,0.0001207,2]
[406948798,1772335838874,-500.0,0.0001207,2]
[406948799,1772335838883,-500.0,0.0001207,2]
[406948800,1772335838892,-500.0,0.0001207,2]
[406948801,1772335838902,-500.0,0.0001207,2]
[406948802,1772335838911,-500.0,0.0001207,2]
[406948803,1772335838920,-442.0,0.0001212,2]
[406948804,1772335838929,-820.0,0.00012144,2]
[406948805,1772335838938,-174.0,0.00012169,2]
[406948806,1772335838949,-1900.0,0.000126,4]
[406948807,1772335838959,-303.113702,0.00012639,2]
[406948808,1772335838968,-207.17320712,0.000127,2]
[406948809,1772335838977,-617.81465067,0.000127,2]
[406948810,1772335838986,-637.38451964,0.000127,2]
[406948811,1772335838995,-3900.0,0.000127,4]
[406948812,1772335839005,-504.90103446,0.000127,2]
[406948813,1772335839014,-500.0,0.000127,2]
[406948814,1772335839025,-500.0,0.000127,2]
[406948815,1772335839034,-167.04354898,0.000127,2]
[406948816,1772335839043,-500.0,0.000127,2]
[406948817,1772335839053,-429.29123643,0.000127,2]
[406948818,1772335839063,-500.0,0.000127,2]
[406948819,1772335839074,-504.12622104,0.000127,2]
[406948820,1772335839084,-505.72694533,0.000127,2]
[406948821,1772335839094,-5800.0,0.000128,4]
[406948822,1772335839103,-7800.0,0.000129,4]
[406948823,1772335839113,-589.82928481,0.00012999,2]
[406948824,1772335839123,-504.0,0.00013041,2]
[406948825,1772335839132,-1000.0,0.00013158,2]
[406948826,1772335839142,-4609.0,0.00013178,2]
[406948827,1772335839151,-1152.0,0.00013178,2]
[406948828,1772335839161,-1252.0,0.00013179,2]
[406948829,1772335839172,-1000.0,0.00013248,2]
[406948830,1772335839184,-1000.0,0.00013248,2]
[406948831,1772335839195,-1000.0,0.00013248,2]
[406948832,1772335839205,-177.14999555,0.00013248,2]
[406948833,1772335839215,-7096.48773315,0.00013296,2]
[406948834,1772335839225,-1236.8039,0.00013297,2]
[406948835,1772335839236,-168.703,0.00013304,2]
[406948836,1772335839246,-1858.268,0.00013304,2]
[406948837,1772335839255,-7797.0,0.0001337,2]
[406948838,1772335839265,-369.09020316,0.00013376,2]
[406948839,1772335839274,-677.69231856,0.00013376,2]
[406948840,1772335839284,-748.90198818,0.00013388,2]
[406948841,1772335839294,-500.0,0.00013389,2]
[406948842,1772335839303,-500.0,0.00013389,2]
[406948843,1772335839313,-500.0,0.00013389,2]
[406948844,1772335839323,-500.0,0.00013389,2]
[406948845,1772335839333,-500.0,0.00013389,2]
[406948846,1772335839344,-500.0,0.00013389,2]
[406948847,1772335839353,-500.0,0.00013389,2]
[406948848,1772335839363,-260.87327193,0.00013389,2]
[406948849,1772335839374,-151.0,0.00013389,2]
[406948850,1772335839385,-500.0,0.00013389,2]
[406948851,1772335839394,-151.0,0.00013389,2]
[406948852,1772335839404,-151.0,0.00013389,2]
[406948853,1772335839413,-151.0,0.00013389,2]
[406948854,1772335839422,-151.0,0.00013389,2]
[406948855,1772335839431,-151.0,0.00013389,2]
[406948856,1772335839441,-151.0,0.00013389,2]
[406948857,1772335839450,-151.0,0.00013389,2]
[406948858,1772335839460,-151.0,0.00013389,2]
[406948859,1772335839470,-151.0,0.00013389,2]
[406948860,1772335839479,-151.0,0.00013389,2]
[406948861,1772335839488,-151.0,0.00013389,2]
[406948862,1772335839498,-151.0,0.00013389,2]
[406948863,1772335839507,-151.0,0.00013389,2]
[406948864,1772335839517,-151.0,0.00013389,2]
[406948865,1772335839526,-235.33225626,0.00013389,2]
[406948866,1772335839536,-151.0,0.00013389,2]
[406948867,1772335839546,-151.0,0.00013389,2]
[406948868,1772335839556,-151.0,0.00013389,2]
[406948869,1772335839565,-151.0,0.00013389,2]
[406948870,1772335839575,-151.0,0.00013389,2]
[406948871,1772335839585,-151.0,0.00013389,2]
[406948872,1772335839594,-151.0,0.00013389,2]
[406948873,1772335839604,-151.0,0.00013389,2]
[406948874,1772335839613,-151.0,0.00013389,2]
[406948875,1772335839623,-151.0,0.00013389,2]
[406948876,1772335839634,-151.0,0.00013389,2]
[406948877,1772335839644,-151.0,0.00013389,2]
[406948878,1772335839654,-151.0,0.00013389,2]
[406948879,1772335839664,-151.0,0.00013389,2]
[406948880,1772335839675,-151.0,0.00013389,2]
[406948881,1772335839687,-151.0,0.00013389,2]
[406948882,1772335839700,-151.0,0.00013389,2]
[406948883,1772335839710,-151.0,0.00013389,2]
[406948884,1772335839719,-151.0,0.00013389,2]
[406948885,1772335839729,-151.0,0.00013389,2]
[406948886,1772335839738,-151.0,0.00013389,2]
[406948887,1772335839747,-151.0,0.00013389,2]
[406948888,1772335839757,-151.0,0.00013389,2]
[406948889,1772335839768,-151.0,0.00013389,2]
[406948890,1772335839777,-151.0,0.00013389,2]
[406948891,1772335839786,-151.0,0.00013389,2]
[406948892,1772335839796,-151.0,0.00013389,2]
[406948893,1772335839805,-151.0,0.00013389,2]
[406948894,1772335839815,-151.0,0.00013389,2]
[406948895,1772335839824,-151.0,0.00013392,2]
[406948896,1772335839835,-535.34638193,0.00013393,2]
[406948897,1772335839844,-151.0,0.00013395,2]
[406948898,1772335839853,-500.0,0.00013397,2]
[406948899,1772335839863,-156.88785906,0.00013397,2]
[406948900,1772335839873,-195.2011838,0.00013397,2]
[406948901,1772335839882,-500.0,0.00013397,2]
[406948902,1772335839892,-546.43939082,0.00013397,2]
[406948903,1772335839901,-417.95907594,0.00013397,2]
[406948904,1772335839910,-69826.1420431,0.00013398,2]
[406948905,1772335839924,-500.0,0.00013398,2]
[406948908,1772335840424,-76737.70209447,0.00013398,2]
[406948909,1772335840479,-1115873.74850502,0.00013398,2]
[406948910,1772335840539,-522.9232407,0.00013398,2]
[406948911,1772335840551,-2290.38582166,0.00013398,2]
[406948912,1772335840562,-2277.0831524,0.00013398,2]
[406948913,1772335840574,-875.50000001,0.00013398,2]
[406948914,1772335840585,-325.47403664,0.00013398,2]
[406948915,1772335840762,-1230771.041106,0.00013398,2]
[406948916,1772335840772,-1600.0,0.00013476,2]
[406948917,1772335840781,-500.0,0.00013698,2]
[406948918,1772335840790,-500.0,0.00013698,2]
[406948919,1772335840799,-500.0,0.00013698,2]
[406948920,1772335840808,-500.0,0.00013698,2]
[406948921,1772335840817,-500.0,0.00013698,2]
[406948922,1772335840828,-500.0,0.00013698,2]
[406948923,1772335840837,-500.0,0.00013698,2]
[406948924,1772335840846,-500.0,0.00013698,2]
[406948925,1772335840972,-500.0,0.00013698,2]
[406948926,1772335840982,-500.0,0.00013698,2]
[406948927,1772335840991,-563.55,0.00013698,2]
[406948928,1772335841000,-563.55,0.00013698,2]
[406948929,1772335841009,-563.55,0.00013698,2]
[406948930,1772335841019,-563.55,0.00013698,2]
[406948931,1772335841028,-563.55,0.00013698,2]
[406948932,1772335841038,-563.55,0.00013698,2]
[406948933,1772335841047,-563.55,0.00013698,2]
[406948934,1772335841057,-563.55,0.00013698,2]
[406948935,1772335841066,-563.55,0.00013698,2]
[406948936,1772335841075,-563.55,0.00013698,2]
[406948937,1772335841084,-194.2,0.00013699,2]
[406948938,1772335841094,-161.83,0.00013699,2]
[406948939,1772335841103,-809.17,0.00013699,2]
[406948940,1772335841112,-3838.38,0.00013699,2]
[406948941,1772335841122,-178.2028016,0.00013699,2]
[406948942,1772335841131,-1500.0,0.00013796,2]
[406948943,1772335841140,-1500.0,0.00013796,2]
[406948944,1772335841150,-1500.0,0.00013796,2]
[406948945,1772335841159,-359.97,0.0001382,2]
[406948946,1772335841169,-7096.48773313,0.00013954,2]
[406948947,1772335841178,-18023.48996189,0.00014,2]
[406948948,1772335841188,-525.0,0.0001411,2]
[406948949,1772335841197,-535.34638188,0.00014144,2]
[406948950,1772335841207,-239.15473341,0.00014312,2]
[406948951,1772335841217,-2000.0,0.00014344,2]
[406948952,1772335841226,-2000.0,0.00014344,2]
[406948953,1772335841235,-2000.0,0.00014344,2]
[406948954,1772335841244,-2182.9594,0.00014373,2]
[406948955,1772335841254,-1000.0,0.00014373,2]
[406948956,1772335841263,-3838.38,0.00014384,2]
[406948957,1772335841272,-151.0,0.00014463,2]
[406948958,1772335841282,-151.0,0.00014463,2]
[406948959,1772335841292,-666.0,0.00014465,2]
[406948960,1772335841302,-200.0,0.00014466,2]
[406948961,1772335841311,-11131.6614149,0.00014466,2]
[406948962,1772335841320,-2366.4282036,0.00014466,2]
[406948963,1772335841330,-64719.3498312,0.00014466,2]
[406948964,1772335841340,-37328.1536089,0.00014466,2]
[406948965,1772335841350,-151.0,0.00014466,2]
[406948966,1772335841359,-151.0,0.00014466,2]
[406948967,1772335841368,-278.105987,0.00014466,2]
[406948968,1772335841378,-233.811589,0.00014466,2]
[406948969,1772335841387,-278.105987,0.00014466,2]
[406948970,1772335841396,-278.105987,0.00014466,2]
[406948971,1772335841406,-278.105987,0.00014466,2]
[406948972,1772335841415,-233.811589,0.00014466,2]
[406948973,1772335841425,-233.811589,0.00014466,2]
[406948974,1772335841435,-233.811589,0.00014466,2]
[406948975,1772335841444,-151.0,0.00014466,2]
[406948976,1772335841455,-270376.7237183,0.00014466,2]
[406948977,1772335841464,-155.071498,0.00014466,2]
[406948978,1772335841474,-151.191273,0.00014466,2]
[406948979,1772335841483,-151.0,0.00014466,2]
[406948980,1772335841492,-151.0,0.00014466,2]
[406948981,1772335841502,-151.0,0.00014466,2]
[406948982,1772335841511,-151.0,0.00014466,2]
[406948983,1772335841520,-236.578899,0.00014466,2]
[406948984,1772335841530,-652287.2586035,0.00014466,2]
[406948985,1772335841539,-500.0,0.00014471,2]
[406948986,1772335841549,-563.55,0.00014471,2]
[406948987,1772335841559,-500.0,0.00014472,2]
[406948988,1772335841568,-500.0,0.00014472,2]
[406948989,1772335841577,-500.0,0.00014472,2]
[406948990,1772335841587,-500.0,0.00014472,2]
[406948991,1772335841596,-500.0,0.00014472,2]
[406948992,1772335841605,-500.0,0.00014472,2]
[406948993,1772335841615,-500.0,0.00014472,2]
[406948994,1772335841625,-500.0,0.00014472,2]
[406948995,1772335841634,-500.0,0.00014472,2]
[406948996,1772335841643,-500.0,0.00014472,2]
[406948997,1772335841652,-311.04332591,0.00014472,2]
[406948998,1772335841661,-200.0,0.00014473,2]
[406948999,1772335841670,-200.0,0.00014473,2]
[406949000,1772335841679,-159.0,0.00014473,3]
[406949001,1772335841689,-6453.0,0.00014496,2]
[406949002,1772335841702,-1613.0,0.00014496,2]
[406949003,1772335841711,-1733.0,0.00014502,2]
[406949004,1772335841720,-240.53405396,0.00014531,2]
[406949005,1772335841730,-7096.48773313,0.00014611,2]
[406949006,1772335841739,-200.0,0.00014618,2]
[406949007,1772335841748,-1000.0,0.0001462,2]
[406949008,1772335841757,-151.0,0.00014634,2]
[406949009,1772335841769,-151.0,0.00014634,2]
[406949010,1772335841778,-500.0,0.00014672,2]
[406949011,1772335841787,-501.22690483,0.00014672,2]
[406949012,1772335841796,-500.0,0.00014672,2]
[406949013,1772335841806,-200.0,0.00014764,2]
[406949014,1772335841815,-500.0,0.00014773,2]
[406949015,1772335841825,-500.0,0.00014773,2]
[406949016,1772335841834,-500.0,0.00014773,2]
[406949017,1772335841843,-500.0,0.00014773,2]
[406949018,1772335841853,-609.4473265,0.00014773,2]
[406949019,1772335841864,-500.0,0.00014773,2]
[406949020,1772335841875,-250.74838363,0.00014773,2]
[406949021,1772335841885,-500.0,0.00014773,2]
[406949022,1772335841894,-500.0,0.00014773,2]
[406949023,1772335841903,-192.10988636,0.00014773,2]
[406949024,1772335841912,-500.0,0.00014773,2]
[406949025,1772335841921,-500.0,0.00014773,2]
[406949026,1772335841930,-324.34657869,0.00014773,2]
[406949027,1772335841939,-500.0,0.00014773,2]
[406949028,1772335841948,-500.0,0.00014773,2]
[406949029,1772335841957,-514.28620298,0.00014773,2]
[406949030,1772335841967,-500.0,0.00014773,2]
[406949031,1772335841976,-164.17790242,0.00014773,2]
[406949032,1772335841985,-500.0,0.00014773,2]
[406949033,1772335841994,-500.0,0.00014773,2]
[406949034,1772335842003,-209.77768415,0.00014773,2]
[406949035,1772335842013,-168.73899563,0.00014773,2]
[406949036,1772335842026,-170.50676993,0.00014773,2]
[406949037,1772335842041,-500.0,0.00014773,2]
[406949038,1772335842055,-500.0,0.00014773,2]
[406949039,1772335842066,-500.0,0.00014773,2]
[406949040,1772335842079,-500.0,0.00014773,2]
[406949041,1772335842094,-500.0,0.00014773,2]
[406949042,1772335842106,-500.0,0.00014773,2]
[406949043,1772335842121,-500.0,0.00014773,2]
[406949044,1772335842136,-188.01451928,0.00014773,2]
[406949045,1772335842149,-162.96654184,0.00014773,2]
[406949046,1772335842162,-162.14091105,0.00014773,2]
[406949047,1772335842173,-504.20713995,0.00014773,2]
[406949048,1772335842185,-600.0287251,0.00014773,2]
[406949049,1772335842198,-167.0165206,0.00014773,2]
[406949050,1772335842210,-500.0,0.00014773,2]
[406949051,1772335842223,-163.50875747,0.00014773,2]
[406949052,1772335842236,-500.0,0.00014773,2]
[406949053,1772335842251,-500.0,0.00014773,2]
[406949054,1772335842265,-500.0,0.00014773,2]
[406949055,1772335842280,-8063.08,0.00014799,2]
[406949056,1772335842294,-166.68,0.00014879,2]
[406949057,1772335842310,-1046.51091633,0.00014892,2]
[406949058,1772335842324,-1658.17879511,0.00014892,2]
[406949059,1772335842338,-2500.0,0.00014892,2]
[406949060,1772335842352,-535.34638188,0.00014895,2]
[406949061,1772335842363,-9800.0,0.000149,5]
[406949062,1772335842376,-200.0,0.00014912,2]
[406949063,1772335842390,-5283.3577257,0.00015,7]
[406949064,1772335842403,-250.0,0.00015,2]
[406949065,1772335842416,-10000.0,0.00015,2]
[406949066,1772335842429,-462.0,0.00015,10]
[406949067,1772335842439,-200.0,0.00015061,2]
[406949068,1772335842451,-414.206117,0.00015068,2]
[406949069,1772335842463,-414.206117,0.00015068,2]
[406949070,1772335842478,-414.206117,0.00015068,2]
[406949071,1772335842495,-414.206117,0.00015068,2]
[406949072,1772335842505,-3838.38,0.00015068,2]
[406949073,1772335842516,-748.90198818,0.0001509,2]
[406949074,1772335842529,-151.0,0.00015097,2]
[406949075,1772335842543,-500.0,0.00015099,2]
[406949076,1772335842556,-563.55,0.00015099,2]
[406949077,1772335842568,-288283.5043632,0.000151,2]
[406949078,1772335842580,-153.248242,0.000151,2]
[406949079,1772335842592,-151.0,0.000151,2]
[406949080,1772335842604,-151.0,0.000151,2]
[406949081,1772335842615,-151.0,0.000151,2]
[406949082,1772335842627,-151.0,0.000151,2]
[406949083,1772335842638,-151.0,0.000151,2]
[406949084,1772335842650,-151.0,0.000151,2]
[406949085,1772335842663,-151.0,0.000151,2]
[406949086,1772335842674,-278.105987,0.000151,2]
[406949087,1772335842685,-233.811589,0.000151,2]
[406949088,1772335842702,-278.105987,0.000151,2]
[406949089,1772335842714,-278.105987,0.000151,2]
[406949090,1772335842725,-278.105987,0.000151,2]
[406949091,1772335842737,-233.811589,0.000151,2]
[406949092,1772335842748,-233.811589,0.000151,2]
[406949093,1772335842760,-233.811589,0.000151,2]
[406949094,1772335842774,-154.107363,0.000151,2]
[406949095,1772335842786,-414.206117,0.000151,2]
[406949096,1772335842797,-414.206117,0.000151,2]
[406949097,1772335842809,-414.206117,0.000151,2]
[406949098,1772335842820,-414.206117,0.000151,2]
[406949099,1772335842831,-153.698387,0.000151,2]
[406949100,1772335842843,-151.0,0.000151,2]
[406949101,1772335842854,-159.0,0.000151,3]
[406949102,1772335842865,-160.0,0.00015108,2]
[406949103,1772335842875,-174.09452548,0.00015108,2]
[406949104,1772335842886,-500.0,0.00015156,2]
[406949105,1772335842898,-563.55,0.00015156,2]
[406949106,1772335842910,-1600.0,0.00015161,2]
[406949107,1772335842921,-378.892127,0.00015167,7]
[406949108,1772335842932,-7096.48773313,0.00015269,2]
[406949109,1772335842943,-159.05015614,0.00015295,2]
[406949110,1772335842956,-151.0,0.00015307,2]
[406949111,1772335842967,-158.98,0.00015308,2]
[406949113,1772335842978,-299.99,0.0001531,2]
[406949114,1772335842989,-9999.99,0.0001531,2]
[406949115,1772335843000,-9999.99,0.0001531,2]
[406949116,1772335843011,-9999.99,0.0001531,2]
[406949117,1772335843022,-999.99,0.0001531,2]
[406949118,1772335843033,-9387.99,0.0001531,2]
[406949119,1772335843045,-150.99,0.0001531,2]
[406949120,1772335843056,-150.99,0.0001531,2]
[406949121,1772335843067,-9999.99,0.0001531,2]
[406949122,1772335843077,-9999.99,0.0001531,2]
[406949123,1772335843089,-499.99,0.0001531,2]
[406949124,1772335843100,-5315.64,0.0001531,2]
[406949125,1772335843111,-327.89337357,0.00015321,2]
[406949126,1772335843122,-1000.0,0.00015321,2]
[406949127,1772335843133,-531.47473758,0.00015321,2]
[406949128,1772335843146,-1000.0,0.00015321,2]
[406949129,1772335843158,-1000.0,0.00015321,2]
[406949130,1772335843170,-1000.0,0.00015321,2]
[406949131,1772335843181,-893.2646372,0.00015321,2]
[406949132,1772335843194,-1000.0,0.00015321,2]
[406949133,1772335843208,-1011.27259879,0.00015321,2]
[406949135,1772335843220,-1000.0,0.00015321,2]
[406949137,1772335843230,-1000.0,0.00015321,2]
[406949139,1772335843239,-1000.0,0.00015321,2]
[406949141,1772335843248,-1000.0,0.00015321,2]
[406949142,1772335843259,-1000.0,0.00015321,2]
[406949143,1772335843269,-161.99279756,0.00015321,2]
[406949144,1772335843279,-1000.0,0.00015321,2]
[406949145,1772335843289,-19838.17913098,0.0001536,2]
[406949146,1772335843300,-3000.0,0.0001544,2]
[406949147,1772335843309,-152.98355904,0.00015461,2]
[406949148,1772335843318,-648.3262986,0.00015513,2]
[406949150,1772335843480,-500.0,0.00015513,2]
[406949151,1772335843512,-563.55,0.00015513,2]
[406949152,1772335843524,-151.0,0.00015514,2]
[406949153,1772335843533,-151.92675384,0.00015514,2]
[406949154,1772335843542,-151.0,0.00015514,2]
[406949155,1772335843551,-151.0,0.00015514,2]
[406949156,1772335843561,-151.0,0.00015514,2]
[406949157,1772335843570,-151.0,0.00015514,2]
[406949158,1772335843580,-151.0,0.00015514,2]
[406949159,1772335843589,-2804.557863,0.0001552,7]
[406949160,1772335843598,-275.00849046,0.00015627,2]
[406949161,1772335843608,-587.45388383,0.00015627,2]
[406949162,1772335843617,-668.65185757,0.00015627,2]
[406949163,1772335843627,-500.0,0.00015627,2]
[406949164,1772335843636,-500.0,0.00015627,2]
[406949165,1772335843645,-500.0,0.00015627,2]
[406949166,1772335843655,-500.0,0.00015627,2]
[406949167,1772335843664,-500.0,0.00015627,2]
[406949168,1772335843674,-500.0,0.00015627,2]
[406949169,1772335843684,-500.0,0.00015627,2]
[406949170,1772335843696,-500.0,0.00015627,2]
[406949171,1772335843708,-500.0,0.00015627,2]
[406949172,1772335843716,-500.0,0.00015627,2]
[406949173,1772335843727,-500.0,0.00015627,2]
[406949174,1772335843736,-500.0,0.00015627,2]
[406949175,1772335843745,-369.09020315,0.00015638,2]
[406949176,1772335843754,-677.69231856,0.00015638,2]
[406949177,1772335843763,-535.34638188,0.00015647,2]
[406949178,1772335843774,-1280.069,0.00015653,2]
[406949179,1772335843784,-269.397,0.00015653,2]
[406949180,1772335843793,-921.0,0.00015653,2]
[406949181,1772335843803,-1211.0,0.00015653,2]
[406949182,1772335843813,-3500.0,0.00015653,2]
[406949183,1772335843823,-1359.913,0.00015653,2]
[406949184,1772335843832,-628.072,0.00015653,2]
[406949186,1772335843842,-693.3919763,0.00015682,2]
[406949188,1772335843852,-159.0,0.00015728,3]
[406949189,1772335843862,-327.92,0.00015733,2]
[406949190,1772335843874,-278.77086578,0.00015736,2]
[406949191,1772335843886,-719.04747942,0.00015737,2]
[406949192,1772335843896,-3838.38,0.00015753,2]
[406949193,1772335843905,-215.0,0.00015758,2]
[406949194,1772335843915,-269.0,0.00015758,2]
[406949195,1772335843925,-150.349,0.00015758,2]
[406949196,1772335843935,-150.369,0.00015758,2]
[406949197,1772335843944,-150.0,0.00015758,2]
[406949198,1772335843956,-150.2,0.00015758,2]
[406949199,1772335843966,-150.0,0.00015758,2]
[406949200,1772335843975,-150.0,0.00015758,2]
[406949201,1772335843987,-150.0,0.00015758,2]
[406949202,1772335843996,-150.381,0.00015758,2]
[406949203,1772335844006,-745.65223616,0.00015792,2]
[406949204,1772335844016,-773.2413689,0.00015847,2]
[406949205,1772335844025,-233.811589,0.00015854,2]
[406949206,1772335844035,-233.811589,0.00015854,2]
[406949207,1772335844044,-233.811589,0.00015854,2]
[406949208,1772335844054,-233.811589,0.00015854,2]
[406949209,1772335844063,-151.0,0.00015854,2]
[406949210,1772335844072,-500.0,0.00015868,2]
[406949211,1772335844082,-500.0,0.00015868,2]
[406949212,1772335844091,-151.0,0.00015868,2]
[406949213,1772335844101,-151.0,0.00015868,2]
[406949214,1772335844110,-278.105987,0.00015868,2]
[406949215,1772335844120,-278.105987,0.00015868,2]
[406949216,1772335844130,-278.105987,0.00015868,2]
[406949217,1772335844139,-278.105987,0.00015868,2]
[406949218,1772335844149,-414.206117,0.00015868,2]
[406949219,1772335844158,-414.206117,0.00015868,2]
[406949220,1772335844168,-414.206117,0.00015868,2]
[406949221,1772335844179,-414.206117,0.00015868,2]
[406949222,1772335844188,-638.33965258,0.00015868,2]
[406949223,1772335844198,-1500.0,0.00015868,2]
[406949224,1772335844210,-1005.78144898,0.00015868,2]
[406949225,1772335844219,-1523.38514215,0.00015868,2]
[406949226,1772335844229,-1500.0,0.00015868,2]
[406949227,1772335844238,-505.1741474,0.00015868,2]
[406949228,1772335844248,-1500.0,0.00015868,2]
[406949229,1772335844258,-1500.0,0.00015868,2]
[406949230,1772335844268,-1500.0,0.00015868,2]
[406949231,1772335844278,-936.51204434,0.00015868,2]
[406949232,1772335844288,-150.0,0.000159,2]
[406949233,1772335844298,-150.0,0.000159,2]
[406949234,1772335844307,-150.49035681,0.000159,2]
[406949235,1772335844317,-801.85129955,0.00015902,2]
[406949236,1772335844326,-350.0,0.00015919,2]
[406949237,1772335844336,-151.0,0.00015924,2]
[406949238,1772335844345,-7096.48773313,0.00015927,2]
[406949239,1772335844355,-4944.0,0.00015946,2]
[406949240,1772335844365,-2258.0,0.00015946,2]
[406949241,1772335844375,-831.51979763,0.00015957,2]
[406949242,1772335844384,-3500.0,0.00015988,2]
[406949243,1772335844394,-500.0,0.00016006,2]
[406949244,1772335844403,-500.0,0.00016006,2]
[406949245,1772335844413,-862.28603014,0.00016012,2]
[406949246,1772335844423,-894.19061326,0.00016067,2]
[406949247,1772335844433,-513.0,0.00016073,2]
[406949248,1772335844443,-513.0,0.00016075,2]
[406949249,1772335844453,-1000.0,0.00016081,2]
[406949250,1772335844462,-513.0,0.00016102,2]
[406949251,1772335844472,-503.77903775,0.0001611,2]
[406949252,1772335844482,-9999.99,0.00016116,2]
[406949253,1772335844491,-927.27566595,0.00016122,2]
[406949254,1772335844501,-513.0,0.00016139,2]
[406949255,1772335844511,-513.0,0.00016156,2]
[406949256,1772335844521,-513.0,0.00016172,2]
[406949257,1772335844531,-961.58486559,0.00016177,2]
[406949258,1772335844541,-997.16350561,0.00016232,2]
[406949259,1772335844551,-513.0,0.00016243,2]
[406949260,1772335844560,-513.0,0.0001627,2]
[406949261,1772335844569,-513.0,0.00016273,2]
[406949262,1772335844579,-5678.0,0.00016298,2]
[406949263,1772335844588,-7205.9,0.00016332,2]
[406949264,1772335844598,-1765.0,0.00016349,2]
[406949265,1772335844607,-159.0,0.00016355,3]
[406949266,1772335844616,-500.0,0.00016356,2]
[406949267,1772335844626,-1000.0,0.00016356,2]
[406949268,1772335844635,-700.0,0.00016356,2]
[406949269,1772335844644,-350.0,0.00016377,2]
[406949270,1772335844654,-513.0,0.00016382,2]
[406949271,1772335844663,-535.34638188,0.00016398,2]
[406949272,1772335844673,-2847.0,0.000164,2]
[406949273,1772335844683,-502.65524263,0.00016416,2]
[406949274,1772335844696,-1009.90880948,0.00016416,2]
[406949275,1772335844707,-760.27551932,0.00016416,2]
[406949276,1772335844717,-1001.77670981,0.00016416,2]
[406949277,1772335844727,-2000.0,0.00016416,2]
[406949278,1772335844736,-513.0,0.00016432,2]
[406949279,1772335844746,-151.0,0.00016438,2]
[406949280,1772335844755,-151.0,0.00016438,2]
[406949281,1772335844765,-200.97427,0.00016438,2]
[406949282,1772335844774,-152.389745,0.00016438,2]
[406949283,1772335844783,-150.21650816,0.00016438,2]
[406949284,1772335844793,-228.18,0.00016438,2]
[406949285,1772335844802,-151.0,0.00016438,2]
[406949286,1772335844811,-151.0,0.00016438,2]
[406949287,1772335844821,-151.0,0.00016438,2]
[406949288,1772335844831,-151.0,0.00016438,2]
[406949289,1772335844840,-151.0,0.00016438,2]
[406949290,1772335844849,-151.0,0.00016438,2]
[406949291,1772335844859,-151.0,0.00016438,2]
[406949292,1772335844868,-153.732861,0.00016438,2]
[406949293,1772335844877,-151.0,0.00016438,2]
[406949294,1772335844886,-151.0,0.00016438,2]
[406949295,1772335844895,-151.0,0.00016438,2]
[406949296,1772335844904,-151.0,0.00016438,2]
[406949297,1772335844913,-151.0,0.00016438,2]
[406949298,1772335844923,-219.664481,0.00016438,2]
[406949299,1772335844932,-1000.0,0.00016438,2]
[406949300,1772335844942,-151.0,0.00016438,2]
[406949301,1772335844952,-152.739352,0.00016438,2]
[406949302,1772335844961,-3838.38,0.00016438,2]
[406949303,1772335844971,-151.0,0.00016438,2]
[406949304,1772335844980,-151.0,0.00016438,2]